bitfinex-derivatives/quotes_SOLF0:USTF0_20250321
["timestamp","ask_amount","ask_price","bid_price","bid_amount"]
[1742523568425,35.7575,128.32,128.31,7.492e-05]
[1742523569432,27.96,128.32,128.31,7.492e-05]
[1742523571334,7.7972,128.33,128.31,7.492e-05]
[1742523571831,39.27959592,128.34,128.31,7.79767492]
[1742523571832,35.73062153,128.34,128.31,7.79767492]
[1742523572026,35.73062153,128.34,128.31,11.93387492]
[1742523573229,7.85062153,128.34,128.31,11.93387492]
[1742523574134,0.05402153,128.34,128.31,4.13627492]
[1742523574437,11.39959592,128.34,128.31,4.13627492]
[1742523575233,7.7975,128.32,128.31,4.13627492]
[1742523582439,7.7975,128.32,128.31,2.00717492]
[1742523582742,7.7975,128.32,128.31,7.492e-05]
[1742523589543,35.5375,128.32,128.31,7.492e-05]
[1742523591651,46.88307439,128.32,128.31,7.492e-05]
[1742523593550,7.8011,128.26,128.25,257.32]
[1742523594050,7.8019,128.25,128.23,19.14847439]
[1742523594646,7.85228314,128.25,128.23,19.20392882]
[1742523595550,7.85228314,128.25,128.23,11.40102882]
[1742523596546,0.05038314,128.25,128.23,19.20392882]
[1742523598455,0.05038314,128.25,128.24,7.8024]
[1742523598651,0.05038314,128.25,128.24,19.14797439]
[1742523600157,0.05038314,128.25,128.23,0.05545443]
[1742523600356,0.05038314,128.25,128.23,11.40102882]
[1742523600659,27.76,128.28,128.24,11.34557439]
[1742523600859,35.5605,128.28,128.25,11.34557439]
[1742523601259,27.76,128.28,128.25,11.34557439]
[1742523601460,7.8006,128.27,128.25,11.34557439]
[1742523601863,7.85569895,128.27,128.24,19.14757439]
[1742523603866,7.8012,128.26,128.24,19.14757439]
[1742523604166,7.8012,128.26,128.24,11.34557439]
[1742523604762,7.8018,128.25,128.23,19.20372882]
[1742523604963,7.8018,128.25,128.23,11.40102882]
[1742523605767,7.8024,128.24,128.23,0.05545443]
[1742523606154,7.8024,128.24,128.23,11.40102882]
[1742523607266,7.8024,128.24,128.23,0.05545443]
[1742523608669,35.4621,128.25,128.23,0.05545443]
[1742523608863,35.4621,128.25,128.23,11.40102882]
[1742523610465,7.8024,128.24,128.23,11.40102882]
[1742523610662,27.66,128.25,128.23,11.40102882]
[1742523610966,35.462,128.25,128.23,0.05545443]
[1742523611767,35.462,128.25,128.23,7.85835443]
[1742523612163,27.66,128.25,128.23,11.40102882]
[1742523612355,27.69509895,128.27,128.24,7.8024]
[1742523612859,35.49589895,128.27,128.24,7.8024]
[1742523614467,39.04067334,128.27,128.23,0.05545443]
[1742523614668,11.34557439,128.26,128.23,0.05545443]
[1742523614966,7.8024,128.24,128.23,0.05545443]
[1742523615567,11.34557439,128.26,128.23,0.05545443]
[1742523615763,39.04067334,128.27,128.23,0.05545443]
[1742523616263,7.8024,128.24,128.23,0.05545443]
[1742523618269,7.802,128.25,128.23,0.05545443]
[1742523619372,7.802,128.25,128.23,7.85835443]
[1742523620364,7.802,128.25,128.23,0.05545443]
[1742523621074,7.802,128.25,128.23,7.85835443]
[1742523622674,39.04067334,128.27,128.23,7.85835443]
[1742523622675,27.69509895,128.27,128.24,7.8024]
[1742523623371,35.49599895,128.27,128.24,7.8024]
[1742523624676,35.49599895,128.27,128.25,7.8015]
[1742523624973,35.49599895,128.27,128.23,11.40102882]
[1742523625270,35.49599895,128.27,128.24,7.8019]
[1742523625576,35.49599895,128.27,128.23,11.40102882]
[1742523625977,35.49599895,128.27,128.24,7.8022]
[1742523626474,35.47599895,128.27,128.24,7.8022]
[1742523626676,35.47599895,128.27,128.25,7.8017]
[1742523626870,35.47599895,128.27,128.23,11.40102882]
[1742523627175,35.47599895,128.27,128.24,7.802]
[1742523627676,7.8013,128.26,128.24,7.802]
[1742523627976,27.67509895,128.27,128.25,7.8015]
[1742523628573,7.85589895,128.27,128.25,7.8015]
[1742523628975,0.05509895,128.27,128.26,7.8011]
[1742523629474,0.05509895,128.27,128.25,7.8014]
[1742523630280,0.05509895,128.27,128.23,11.40102882]
[1742523630782,0.05509895,128.27,128.25,7.8013]
[1742523630976,0.05509895,128.27,128.23,11.40102882]
[1742523632379,0.05509895,128.27,128.26,7.8011]
[1742523632566,0.05509895,128.27,128.25,11.34557439]
[1742523633775,27.58,128.29,128.26,11.34557439]
[1742523633971,27.58,128.29,128.27,11.34557439]
[1742523634772,27.58,128.29,128.28,7.7999]
[1742523634971,27.6369274,128.29,128.28,7.7999]
[1742523636377,27.6369274,128.29,128.27,7.85423574]
[1742523637285,35.4363274,128.29,128.27,0.05403574]
[1742523638582,35.4363274,128.29,128.27,7.85453574]
[1742523639583,7.8563274,128.29,128.27,7.85453574]
[1742523639980,0.0569274,128.29,128.27,7.85453574]
[1742523641785,7.8562274,128.29,128.27,7.85453574]
[1742523641987,7.8562274,128.29,128.27,0.05403574]
[1742523642191,7.7999,128.28,128.27,0.05403574]
[1742523642988,19.14547439,128.28,128.27,0.05403574]
[1742523652805,7.7999,128.28,128.27,0.05403574]
[1742523659603,19.14547439,128.28,128.27,3.574e-05]
[1742523664405,7.8036,128.22,128.21,2.1039]
[1742523665106,7.8042,128.21,128.18,13.42247439]
[1742523665316,11.34557439,128.23,128.19,7.8049]
[1742523665509,7.85944702,128.22,128.19,19.20267712]
[1742523665709,0.05544702,128.22,128.19,19.20267712]
[1742523666300,7.8042,128.21,128.19,19.20267712]
[1742523666904,7.85924702,128.22,128.19,19.20267712]
[1742523667607,7.85924702,128.22,128.2,7.8047]
[1742523668312,7.85924702,128.22,128.19,19.20287712]
[1742523668512,7.8043,128.21,128.19,19.20287712]
[1742523670414,35.2843,128.21,128.19,19.20287712]
[1742523671115,27.48,128.21,128.19,19.20287712]
[1742523671512,27.48,128.21,128.19,0.05220273]
[1742523671713,7.8048,128.2,128.19,0.05220273]
[1742523673110,19.15037439,128.2,128.19,0.05220273]
[1742523674514,19.15037439,128.2,128.19,2.73e-06]
[1742523676625,7.808,128.15,128.12,13.35517439]
[1742523676817,27.48,128.15,128.12,2.0096]
[1742523677620,27.48,128.15,128.12,9.8192]
[1742523677821,27.5295665,128.15,128.12,21.21802368]
[1742523680322,27.5295665,128.15,128.13,7.809]
[1742523680523,27.5295665,128.15,128.12,13.40842368]
[1742523681227,27.5295665,128.15,128.12,21.21762368]
[1742523682521,27.5295665,128.15,128.13,7.8089]
[1742523686627,27.5295665,128.15,128.14,7.8084]
[1742523688725,27.5295665,128.15,128.13,7.8088]
[1742523692439,35.3374665,128.15,128.13,7.8088]
[1742523697838,27.5295665,128.15,128.13,7.8088]
[1742523698035,0.0495665,128.15,128.14,7.8084]
[1742523698341,7.8069,128.17,128.13,38.84557439]
[1742523698728,46.65187439,128.18,128.13,38.84557439]
[1742523698935,35.3063,128.18,128.13,38.84557439]
[1742523699336,0.05841544,128.17,128.13,38.84557439]
[1742523700139,0.05841544,128.17,128.16,7.8068]
[1742523700532,7.8057,128.19,128.15,0.05923956]
[1742523700732,35.3051,128.2,128.17,7.8062]
[1742523701634,35.3051,128.2,128.18,7.8058]
[1742523701830,0.0504779,128.2,128.17,11.40239004]
[1742523702841,0.0504779,128.2,128.18,7.8057]
[1742523703941,0.0504779,128.2,128.19,7.8054]
[1742523704934,27.5,128.22,128.21,7.8039]
[1742523705438,27.5,128.24,128.22,7.803]
[1742523705644,19.14747439,128.25,128.21,2.0009]
[1742523705838,46.64747439,128.25,128.21,2.0009]
[1742523706039,46.64747439,128.25,128.22,7.8034]
[1742523706235,0.05113003,128.24,128.22,11.40043179]
[1742523706730,82.18888703,128.27,128.24,7.802]
[1742523706935,49.68140255,128.27,128.22,11.40043179]
[1742523707334,7.8015,128.26,128.23,7.8027]
[1742523707838,7.85169167,128.26,128.23,7.8027]
[1742523708039,7.85169167,128.26,128.23,7.8028]
[1742523710046,7.85169167,128.26,128.24,7.8022]
[1742523710546,7.85169167,128.26,128.23,19.14827439]
[1742523710742,7.8018,128.25,128.23,19.14827439]
[1742523711246,7.85159167,128.26,128.23,19.14827439]
[1742523714346,7.85159167,128.26,128.24,7.8023]
[1742523714847,0.05019167,128.26,128.24,7.8023]
[1742523715546,7.85139167,128.26,128.24,7.8023]
[1742523717242,7.85139167,128.26,128.24,11.34557439]
[1742523718743,7.85139167,128.26,128.23,21.22377439]
[1742523720149,7.85139167,128.26,128.24,7.8022]
[1742523720350,0.05019167,128.26,128.24,19.14777439]
[1742523721145,0.05019167,128.26,128.24,11.34557439]
[1742523722352,7.85169167,128.26,128.24,7.8022]
[1742523722660,7.85169167,128.26,128.23,13.42107439]
[1742523722861,7.8019,128.25,128.23,21.22367439]
[1742523726553,0.05019167,128.26,128.22,13.46823179]
[1742523726755,38.87576606,128.26,128.22,2.1226574]
[1742523726961,11.34557439,128.24,128.22,0.0548574]
[1742523727160,7.803,128.23,128.22,0.0548574]
[1742523727364,35.283,128.23,128.22,0.0548574]
[1742523727566,46.62857439,128.23,128.22,0.0548574]
[1742523730955,35.283,128.23,128.22,0.0548574]
[1742523731971,46.62857439,128.23,128.22,0.0548574]
[1742523732161,35.283,128.23,128.22,0.0548574]
[1742523733371,27.48,128.23,128.22,11.40043179]
[1742523733564,0.05019167,128.26,128.22,11.40043179]
[1742523733871,27.53019167,128.26,128.24,11.34557439]
[1742523734763,35.33159167,128.26,128.23,19.14817439]
[1742523735271,27.53019167,128.26,128.24,7.8023]
[1742523735870,35.33139167,128.26,128.23,19.14817439]
[1742523736972,35.33139167,128.26,128.24,7.8022]
[1742523737273,27.53019167,128.26,128.24,7.8022]
[1742523740073,27.53019167,128.26,128.25,7.8017]
[1742523740271,35.33139167,128.26,128.23,11.34557439]
[1742523740573,35.33139167,128.26,128.23,19.14827439]
[1742523742174,35.33139167,128.26,128.24,7.8023]
[1742523743473,27.53019167,128.26,128.24,7.8023]
[1742523745670,35.33139167,128.26,128.24,7.8023]
[1742523745876,35.33139167,128.26,128.23,19.14827439]
[1742523746071,35.33139167,128.26,128.23,11.34557439]
[1742523746472,35.33139167,128.26,128.24,7.8023]
[1742523748575,27.53019167,128.26,128.24,7.8023]
[1742523748975,27.53019167,128.26,128.25,7.8017]
[1742523751077,27.53019167,128.26,128.24,19.14757439]
[1742523752470,27.53019167,128.26,128.25,7.8017]
[1742523753979,27.53019167,128.26,128.24,19.14757439]
[1742523754575,27.53019167,128.26,128.24,11.34557439]
[1742523754777,27.53019167,128.26,128.25,7.8017]
[1742523755470,27.53019167,128.26,128.24,11.34557439]
[1742523755875,35.33139167,128.26,128.24,19.14767439]
[1742523756178,35.33139167,128.26,128.24,11.34557439]
[1742523756976,7.8017,128.25,128.24,11.34557439]
[1742523757182,27.53019167,128.26,128.23,2.0116]
[1742523757683,7.802,128.25,128.23,2.0116]
[1742523758083,27.53019167,128.26,128.23,2.0116]
[1742523758584,7.8021,128.25,128.23,2.0116]
[1742523760285,7.8021,128.25,128.23,9.8145]
[1742523762288,35.33159167,128.26,128.23,9.8145]
[1742523762588,35.33159167,128.26,128.24,7.8022]
[1742523762789,27.53019167,128.26,128.24,7.8022]
[1742523763182,27.53019167,128.26,128.25,7.8017]
[1742523763382,0.05019167,128.26,128.25,7.8017]
[1742523765285,0.05019167,128.26,128.24,19.14767439]
[1742523765685,7.85139167,128.26,128.24,11.34557439]
[1742523765881,27.46,128.25,128.22,11.40043179]
[1742523766789,7.803,128.23,128.22,11.40043179]
[1742523767092,7.803,128.23,128.22,0.0548574]
[1742523769590,19.14857439,128.23,128.22,0.0548574]
[1742523769791,19.14857439,128.23,128.22,5.74e-05]
[1742523770783,11.34557439,128.23,128.22,5.74e-05]
[1742523771494,3.4616279,129.16,128.22,5.74e-05]
[1742523771495,7.54082816,128.28,128.22,718.06563179]
[1742523771693,125.04585819,128.29,128.27,11.34557439]
[1742523771892,32.50748448,128.28,128.27,39.04557439]
[1742523772092,92.53837371,128.29,128.27,39.04557439]
[1742523772292,86.68662529,128.29,128.27,39.04557439]
[1742523772590,86.68662529,128.29,128.28,7.7999]
[1742523772793,86.74594924,128.29,128.28,7.7999]
[1742523773294,215.38651543,128.31,128.27,39.10209646]
[1742523773490,215.38651543,128.31,128.29,11.34557439]
[1742523773687,215.38651543,128.31,128.3,27.7]
[1742523774087,215.38651543,128.31,128.3,35.4987]
[1742523776698,0.0597588,128.32,128.3,35.4987]
[1742523776899,0.0597588,128.32,128.31,11.34557439]
[1742523777796,0.0597588,128.32,128.3,0.05670951]
[1742523779100,7.8576588,128.32,128.3,0.05670951]
[1742523781101,7.7981,128.31,128.3,0.05670951]
[1742523783098,0.0597588,128.32,128.3,11.4022839]
[1742523784098,7.8575588,128.32,128.3,11.4022839]
[1742523784403,0.0597588,128.32,128.3,0.05670951]
[1742523784800,7.7981,128.31,128.3,0.05670951]
[1742523789205,7.8575588,128.32,128.3,11.4022839]
[1742523789405,35.5375588,128.32,128.3,11.4022839]
[1742523789605,27.7397588,128.32,128.3,11.4022839]
[1742523790111,27.7397588,128.32,128.3,0.05670951]
[1742523790498,7.7981,128.31,128.3,0.05670951]
[1742523792111,35.5373588,128.32,128.3,0.05670951]
[1742523792309,35.5373588,128.32,128.3,11.4022839]
[1742523793013,27.7397588,128.32,128.3,19.2009839]
[1742523793313,0.0597588,128.32,128.3,19.2009839]
[1742523794217,0.0597588,128.32,128.31,19.14367439]
[1742523795215,0.0597588,128.32,128.31,11.34557439]
[1742523796112,0.0597588,128.32,128.3,0.05670951]
[1742523796521,7.7981,128.31,128.3,0.05670951]
[1742523798617,19.14367439,128.31,128.3,0.05670951]
[1742523803614,7.801,128.27,128.25,11.34557439]
[1742523804823,7.85077964,128.27,128.25,11.40133066]
[1742523806327,7.8011,128.26,128.25,0.05575627]
[1742523806512,0.04977964,128.27,128.25,0.05575627]
[1742523806918,7.85077964,128.27,128.25,0.05575627]
[1742523807122,0.04977964,128.27,128.25,0.05575627]
[1742523808623,7.8011,128.26,128.25,0.05575627]
[1742523809016,0.04977964,128.27,128.25,7.85745627]
[1742523809218,7.85057964,128.27,128.25,7.85745627]
[1742523810021,7.85057964,128.27,128.25,0.05575627]
[1742523810724,7.8011,128.26,128.25,0.05575627]
[1742523812323,7.85067964,128.27,128.25,0.05575627]
[1742523813519,7.8011,128.26,128.25,0.05575627]
[1742523820841,35.3211,128.26,128.25,0.05575627]
[1742523832046,27.52,128.26,128.25,0.05575627]
[1742523832243,0.04977964,128.27,128.25,0.05575627]
[1742523832441,0.04977964,128.27,128.25,11.40133066]
[1742523833440,0.04977964,128.27,128.26,7.8011]
[1742523833745,0.04977964,128.27,128.25,11.40133066]
[1742523834547,0.04977964,128.27,128.25,19.20253066]
[1742523837350,0.04977964,128.27,128.25,7.85695627]
[1742523837551,0.04977964,128.27,128.25,19.20253066]
[1742523838841,7.85027964,128.27,128.25,19.20253066]
[1742523839749,7.8011,128.26,128.25,0.05575627]
[1742523840249,0.04977964,128.27,128.25,0.05575627]
[1742523840551,7.85057964,128.27,128.25,0.05575627]
[1742523840852,7.8011,128.26,128.25,0.05575627]
[1742523847958,7.85057964,128.27,128.25,0.05575627]
[1742523848254,7.85057964,128.27,128.25,7.85745627]
[1742523849257,0.04977964,128.27,128.26,7.8011]
[1742523849961,0.04977964,128.27,128.26,19.14667439]
[1742523857770,35.2578,128.32,128.29,7.799]
[1742523858969,35.30884074,128.32,128.29,7.85882398]
[1742523859367,7.7982,128.31,128.29,0.05982398]
[1742523859969,7.7987,128.3,128.29,0.05982398]
[1742523861869,19.14387439,128.31,128.29,0.05982398]
[1742523862471,46.60387439,128.31,128.29,0.05982398]
[1742523863871,35.2583,128.31,128.29,0.05982398]
[1742523864266,7.7987,128.3,128.29,0.05982398]
[1742523864977,35.2584,128.31,128.29,0.05982398]
[1742523870674,7.7987,128.3,128.29,0.05982398]
[1742523874875,35.2584,128.31,128.29,0.05982398]
[1742523881383,35.2584,128.31,128.29,7.85912398]
[1742523882381,27.46,128.31,128.29,7.85912398]
[1742523882781,0.05104074,128.32,128.29,7.85912398]
[1742523882980,17.19559155,128.39,128.31,11.34557439]
[1742523883174,35.8336,128.39,128.34,11.34557439]
[1742523883479,28.04,128.39,128.36,7.795]
[1742523884180,35.88341821,128.39,128.36,7.84458697]
[1742523884883,35.88341821,128.39,128.36,0.04958697]
[1742523885075,7.7939,128.38,128.36,0.04958697]
[1742523886180,7.7945,128.37,128.36,0.04958697]
[1742523887496,19.14007439,128.37,128.36,0.04958697]
[1742523890387,7.7945,128.37,128.36,0.04958697]
[1742523890881,12.0532,128.38,128.36,0.04958697]
[1742523891087,0.05011821,128.39,128.36,19.19016136]
[1742523891388,28.19011821,128.39,128.36,19.19016136]
[1742523892386,35.98381821,128.39,128.36,19.19016136]
[1742523892587,28.19011821,128.39,128.36,19.19016136]
[1742523892886,35.98361821,128.39,128.36,19.19016136]
[1742523893086,28.19011821,128.39,128.36,19.19016136]
[1742523893890,7.7941,128.38,128.36,11.39516136]
[1742523894090,7.7941,128.38,128.36,0.04958697]
[1742523895396,7.7945,128.37,128.36,0.04958697]
[1742523895891,19.14007439,128.37,128.36,0.04958697]
[1742523897594,7.7969,128.33,128.32,11.34557439]
[1742523898189,1.9753,128.38,128.32,11.34557439]
[1742523898388,1.9753,128.38,128.35,11.34557439]
[1742523898590,1.9753,128.38,128.34,11.34557439]
[1742523898891,7.795,128.37,128.35,0.05323889]
[1742523900288,7.7951,128.36,128.35,0.05323889]
[1742523900595,19.14067439,128.36,128.35,0.05323889]
[1742523905595,7.7951,128.36,128.35,0.05323889]
[1742523908992,7.7948,128.37,128.35,0.05323889]
[1742523909199,39.94531645,128.38,128.35,0.05323889]
[1742523909593,7.7948,128.37,128.35,0.05323889]
[1742523910198,28.59974206,128.38,128.35,0.05323889]
[1742523910397,36.39394206,128.38,128.35,7.84893889]
[1742523911396,0.05974206,128.38,128.37,11.34557439]
[1742523912095,0.05974206,128.38,128.37,19.14007439]
[1742523912299,0.05974206,128.38,128.37,7.7945]
[1742523912702,0.05974206,128.38,128.37,19.14007439]
[1742523912897,17.63777439,128.44,128.41,7.7918]
[1742523913090,51.62887439,128.44,128.41,7.7918]
[1742523913300,47.49607439,128.44,128.41,7.7918]
[1742523914004,36.20338363,128.44,128.41,7.84783848]
[1742523914506,39.75845802,128.44,128.41,0.05603848]
[1742523914704,39.73845802,128.44,128.41,0.05603848]
[1742523915204,7.7911,128.43,128.41,0.05603848]
[1742523916002,7.7914,128.42,128.41,0.05603848]
[1742523920707,19.13697439,128.42,128.41,0.05603848]
[1742523927910,7.7911,128.43,128.41,0.05603848]
[1742523930214,0.05288363,128.44,128.42,11.34557439]
[1742523930815,7.84338363,128.44,128.41,19.19341287]
[1742523932209,0.05288363,128.44,128.42,7.7913]
[1742523932519,0.05288363,128.44,128.42,11.34557439]
[1742523932711,0.05288363,128.44,128.43,11.34557439]
[1742523933019,0.05288363,128.44,128.43,19.13637439]
[1742523934120,0.05288363,128.44,128.43,7.7908]
[1742523935016,0.05288363,128.44,128.43,19.13637439]
[1742523936019,0.05288363,128.44,128.43,11.34557439]
[1742523937220,0.05288363,128.44,128.42,19.13667439]
[1742523940825,0.05288363,128.44,128.41,28.35603848]
[1742523941023,0.05288363,128.44,128.43,11.34557439]
[1742523942622,0.05288363,128.44,128.43,19.13637439]
[1742523944325,7.84318363,128.44,128.42,11.34557439]
[1742523944719,0.05288363,128.44,128.42,11.34557439]
[1742523945022,0.05288363,128.44,128.42,19.13697439]
[1742523949529,0.05288363,128.44,128.43,7.7908]
[1742523951228,0.05288363,128.44,128.43,19.13637439]
[1742523953531,0.05288363,128.44,128.43,11.34557439]
[1742523954229,0.05288363,128.44,128.43,19.13637439]
[1742523958131,7.7887,128.47,128.44,7.7897]
[1742523958332,7.7887,128.47,128.44,19.13527439]
[1742523959028,7.789,128.46,128.44,19.13527439]
[1742523959230,7.789,128.46,128.44,19.19477009]
[1742523960434,7.83918765,128.47,128.44,19.19477009]
[1742523961133,7.789,128.46,128.44,19.19477009]
[1742523962537,7.789,128.46,128.44,11.40507009]
[1742523963338,7.789,128.46,128.44,19.19527009]
[1742523964435,7.789,128.46,128.44,11.40507009]
[1742523965437,7.789,128.46,128.44,19.19527009]
[1742523966141,0.05048765,128.47,128.45,11.34557439]
[1742523966326,0.05048765,128.47,128.46,11.34557439]
[1742523967034,0.05048765,128.47,128.46,19.13457439]
[1742523967235,0.05048765,128.47,128.46,7.789]
[1742523967631,0.05048765,128.47,128.45,11.34557439]
[1742523967935,0.05048765,128.47,128.45,19.13507439]
[1742523968537,0.05048765,128.47,128.46,7.789]
[1742523969041,0.05048765,128.47,128.46,19.13457439]
[1742523971944,35.7062,128.51,128.48,7.7875]
[1742523972136,35.7062,128.51,128.48,19.13307439]
[1742523972845,7.7866,128.5,128.48,19.13307439]
[1742523973042,7.7866,128.5,128.48,11.34557439]
[1742523973347,7.83823356,128.5,128.48,0.05527384]
[1742523974548,7.83823356,128.5,128.48,7.84287384]
[1742523975144,0.05163356,128.5,128.48,7.84287384]
[1742523975547,0.05163356,128.5,128.48,19.18844823]
[1742523975850,7.83833356,128.5,128.48,19.18844823]
[1742523976047,0.05163356,128.5,128.49,7.7872]
[1742523979756,0.05163356,128.5,128.49,19.13277439]
[1742523980561,0.05163356,128.5,128.49,46.99277439]
[1742523984562,0.05163356,128.5,128.49,39.20557439]
[1742523985157,0.05163356,128.5,128.49,46.99277439]
[1742523988965,7.7844,128.54,128.51,7.7854]
[1742523989165,7.7844,128.54,128.52,11.34557439]
[1742523989368,7.7844,128.54,128.52,19.13087439]
[1742523990065,7.81571686,128.54,128.52,19.18073001]
[1742523991463,0.03131686,128.54,128.52,19.18073001]
[1742523991767,0.03131686,128.54,128.53,19.13027439]
[1742523992367,0.03131686,128.54,128.53,11.34557439]
[1742523992760,0.03131686,128.54,128.53,19.13027439]
[1742523998975,7.81541686,128.54,128.53,11.34557439]
[1742523999279,7.81541686,128.54,128.52,39.19543001]
[1742524000586,7.81541686,128.54,128.52,46.98073001]
[1742524002985,7.81541686,128.54,128.53,11.34557439]
[1742524006786,7.81541686,128.54,128.52,39.19543001]
[1742524007189,7.81541686,128.54,128.53,11.34557439]
[1742524009494,0.03131686,128.54,128.53,19.13027439]
[1742524011996,0.03131686,128.54,128.53,11.34557439]
[1742524012891,7.81551686,128.54,128.53,11.34557439]
[1742524014900,0.03131686,128.54,128.53,11.34557439]
[1742524015098,0.03131686,128.54,128.53,19.13027439]
[1742524018100,7.782,128.58,128.55,7.783]
[1742524018297,7.782,128.58,128.56,11.34557439]
[1742524019302,7.7823,128.57,128.56,0.05361951]
[1742524020904,11.34557439,128.57,128.52,11.34557439]
[1742524021101,39.02557439,128.57,128.52,11.34557439]
[1742524021997,7.7847,128.53,128.52,11.34557439]
[1742524023412,7.7854,128.52,128.51,0.04969777]
[1742524028719,0.05361951,128.53,128.51,11.39527216]
[1742524028906,0.05361951,128.53,128.52,11.34557439]
[1742524029107,0.05361951,128.53,128.52,19.13097439]
[1742524029305,35.4426,128.57,128.52,11.34557439]
[1742524029606,7.7826,128.57,128.55,11.34557439]
[1742524030608,7.7826,128.57,128.55,11.39785195]
[1742524031415,7.7826,128.57,128.55,19.18125195]
[1742524031710,4.0709,128.59,128.55,19.18125195]
[1742524031711,4.0709,128.59,128.55,11.39785195]
[1742524032011,27.66,128.58,128.56,11.34557439]
[1742524032316,7.7817,128.59,128.56,19.12827439]
[1742524033210,7.7817,128.58,128.56,19.12827439]
[1742524034411,7.7817,128.58,128.56,11.34557439]
[1742524034606,7.7823,128.57,128.56,11.34557439]
[1742524035116,7.782,128.58,128.56,11.34557439]
[1742524037516,7.7823,128.57,128.56,11.34557439]
[1742524039714,7.7829,128.56,128.55,11.39785195]
[1742524041113,7.7826,128.57,128.55,11.39785195]
[1742524042215,7.7826,128.57,128.56,11.34557439]
[1742524043214,7.782,128.58,128.56,11.34557439]
[1742524043609,27.64,128.6,128.56,11.34557439]
[1742524044312,7.7822,128.58,128.56,11.34557439]
[1742524049016,7.7823,128.57,128.56,11.34557439]
[1742524049217,7.7823,128.57,128.55,11.39785195]
[1742524052215,7.7823,128.57,128.56,11.34557439]
[1742524053817,7.7829,128.56,128.55,0.05227756]
[1742524054316,19.12847439,128.56,128.55,0.05227756]
[1742524055216,7.786,128.51,128.5,22.18886847]
[1742524055420,7.786,128.51,128.5,11.34557439]
[1742524055718,7.7857,128.52,128.5,11.34557439]
[1742524056119,7.786,128.51,128.5,11.34557439]
[1742524056320,7.786,128.51,128.5,0.04948685]
[1742524057108,7.83787756,128.52,128.5,0.04948685]
[1742524057316,7.83787756,128.52,128.5,11.39506124]
[1742524057515,0.05227756,128.52,128.5,11.39506124]
[1742524057721,0.05227756,128.52,128.5,19.18136124]
[1742524058921,0.05227756,128.52,128.51,7.786]
[1742524059823,0.05227756,128.52,128.5,19.18126124]
[1742524060125,7.83777756,128.52,128.5,11.39506124]
[1742524061521,0.05227756,128.52,128.5,19.18146124]
[1742524061822,0.05227756,128.52,128.5,0.04948685]
[1742524062217,7.786,128.51,128.5,0.04948685]
[1742524065917,35.646,128.51,128.5,0.04948685]
[1742524070127,46.99157439,128.51,128.5,0.04948685]
[1742524070424,46.99157439,128.51,128.5,8.685e-05]
[1742524073825,35.646,128.51,128.5,8.685e-05]
[1742524074224,27.86,128.51,128.5,11.34566124]
[1742524074527,7.83797756,128.52,128.5,11.34566124]
[1742524075122,0.05227756,128.52,128.5,19.13176124]
[1742524075328,0.05227756,128.52,128.51,11.34557439]
[1742524075723,0.05227756,128.52,128.51,19.13157439]
[1742524076729,0.05227756,128.52,128.51,11.34557439]
[1742524077329,7.83767756,128.52,128.51,11.34557439]
[1742524077524,7.83767756,128.52,128.5,19.13196124]
[1742524079930,0.05227756,128.52,128.5,19.13196124]
[1742524081731,7.83767756,128.52,128.5,19.13196124]
[1742524081932,0.05227756,128.52,128.51,7.786]
[1742524082132,0.05227756,128.52,128.51,19.13157439]
[1742524089735,0.05227756,128.52,128.51,11.34557439]
[1742524091750,0.05227756,128.52,128.51,19.13157439]
[1742524093450,0.05227756,128.52,128.51,7.786]
[1742524094453,7.7839,128.55,128.53,7.7844]
[1742524094654,27.62,128.56,128.53,7.7844]
[1742524094952,35.4034,128.56,128.53,7.7844]
[1742524095149,27.62,128.56,128.53,7.7844]
[1742524095342,7.7838,128.55,128.52,19.13067439]
[1742524095542,27.6694,128.56,128.53,0.05904442]
[1742524095746,39.01497439,128.56,128.53,0.05904442]
[1742524096753,7.7844,128.54,128.53,0.05904442]
[1742524097754,7.7838,128.55,128.53,0.05904442]
[1742524098053,27.6694,128.56,128.53,7.84324442]
[1742524098258,0.0494,128.56,128.54,11.34557439]
[1742524098655,0.0494,128.56,128.54,19.12937439]
[1742524098857,0.0494,128.56,128.53,0.05904442]
[1742524099053,11.39497439,128.56,128.53,0.05904442]
[1742524099449,7.7841,128.54,128.53,0.05904442]
[1742524102257,35.3841,128.54,128.53,0.05904442]
[1742524103658,46.72967439,128.54,128.53,0.05904442]
[1742524112972,7.7869,128.5,128.47,26.26016847]
[1742524114071,7.83835565,128.5,128.47,26.31180576]
[1742524114270,7.83835565,128.5,128.47,15.46851168]
[1742524114463,7.83835565,128.5,128.48,7.7874]
[1742524116263,7.83835565,128.5,128.48,19.13297439]